[Event "Late-Titled-Tuesday-Blitz-July-09-2024"]
[Site "Chess.com"]
[Date "2024.07.09"]
[Round "4"]
[White "Defenstrator"]
[Black "kaponerde"]
[Result "1-0"]
[WhiteElo "2377"]
[BlackElo "2190"]
[TimeControl "180+1"]
[EndTime "14:38:38 PDT"]
[Termination "Defenstrator won by resignation"]

1. b3 {[%clk 0:03:00.5]} 1... e5 {[%clk 0:02:55.4]} 2. Bb2 {[%clk 0:03:00.8]}
2... Nc6 {[%clk 0:02:55.4]} 3. g3 {[%clk 0:03:01.2]} 3... Nf6 {[%clk 0:02:48.8]}
4. Bg2 {[%clk 0:03:01.9]} 4... d5 {[%clk 0:02:47.9]} 5. e3 {[%clk 0:03:02.4]}
5... Bd6 {[%clk 0:02:46.9]} 6. d3 {[%clk 0:03:03.1]} 6... Bg4 {[%clk 0:02:44.9]}
7. Ne2 {[%clk 0:03:02.8]} 7... Qd7 {[%clk 0:02:38.7]} 8. h3 {[%clk 0:03:02.7]}
8... Bh5 {[%clk 0:02:33.2]} 9. g4 {[%clk 0:03:03.5]} 9... Bg6 {[%clk 0:02:17.7]}
10. f4 {[%clk 0:03:03.8]} 10... exf4 {[%clk 0:02:11.1]} 11. exf4 {[%clk
0:03:04.1]} 11... h6 {[%clk 0:02:05.9]} 12. f5 {[%clk 0:03:02.5]} 12... Bh7
{[%clk 0:02:02.6]} 13. Bxf6 {[%clk 0:03:02.8]} 13... gxf6 {[%clk 0:02:02.9]} 14.
Nbc3 {[%clk 0:02:53.3]} 14... d4 {[%clk 0:01:53]} 15. Ne4 {[%clk 0:02:52.8]}
15... Bb4+ {[%clk 0:01:51.3]} 16. c3 {[%clk 0:02:50.7]} 16... dxc3 {[%clk
0:01:44]} 17. Nxf6+ {[%clk 0:02:50.7]} 17... Kd8 {[%clk 0:01:43.9]} 18. Nxd7
{[%clk 0:02:40.3]} 18... c2+ {[%clk 0:01:43.5]} 19. Qd2 {[%clk 0:02:41.1]} 19...
Bxd2+ {[%clk 0:01:36.6]} 20. Kxd2 {[%clk 0:02:42]} 20... Kxd7 {[%clk 0:01:37.2]}
21. Kxc2 {[%clk 0:02:40.4]} 21... Rhe8 {[%clk 0:01:32]} 22. Ng3 {[%clk
0:02:31.2]} 22... Nd4+ {[%clk 0:01:20]} 23. Kd2 {[%clk 0:02:30.3]} 23... Re5
{[%clk 0:00:57.7]} 24. Ne4 {[%clk 0:02:26.4]} 24... Ke7 {[%clk 0:00:49.1]} 25.
Rae1 {[%clk 0:02:22.2]} 25... Re8 {[%clk 0:00:43.3]} 26. Ng5 {[%clk 0:02:12.8]}
26... Kf6 {[%clk 0:00:29.5]} 27. Nxh7+ {[%clk 0:02:12.3]} 27... Kg7 {[%clk
0:00:29.2]} 28. Re4 {[%clk 0:01:43.8]} 28... Rxe4 {[%clk 0:00:23.8]} 29. Bxe4
{[%clk 0:01:44.2]} 29... Kxh7 {[%clk 0:00:21.8]} 30. h4 {[%clk 0:01:44.9]} 30...
f6 {[%clk 0:00:19.9]} 31. g5 {[%clk 0:01:45.2]} 31... Kg7 {[%clk 0:00:13.6]} 32.
Rg1 {[%clk 0:01:41]} 32... hxg5 {[%clk 0:00:13.1]} 33. hxg5 {[%clk 0:01:41.3]}
33... fxg5 {[%clk 0:00:14]} 34. Rxg5+ {[%clk 0:01:41.3]} 34... Kf7 {[%clk
0:00:14.6]} 35. Rh5 {[%clk 0:01:38.5]} 35... Kf6 {[%clk 0:00:12.6]} 36. Rh7
{[%clk 0:01:32.8]} 36... Nxf5 {[%clk 0:00:11.5]} 37. Rxc7 {[%clk 0:01:31.5]}
37... Rb8 {[%clk 0:00:10]} 38. Rxb7 {[%clk 0:01:28]} 38... Rd8 {[%clk
0:00:07.8]} 39. Rxa7 {[%clk 0:01:27.9]} 39... Nd6 {[%clk 0:00:07.6]} 40. Ke3
{[%clk 0:01:25.8]} 40... Ke5 {[%clk 0:00:07.5]} 41. Ra5+ {[%clk 0:01:25.8]}
41... Ke6 {[%clk 0:00:07.8]} 42. Rh5 {[%clk 0:01:24.9]} 42... Rg8 {[%clk
0:00:07.9]} 43. Rh6+ {[%clk 0:01:23.2]} 43... Kd7 {[%clk 0:00:07.7]} 44. Rg6
{[%clk 0:01:21.4]} 44... Re8 {[%clk 0:00:07.5]} 45. a4 {[%clk 0:01:21.1]} 45...
Nf5+ {[%clk 0:00:06.4]} 46. Kf4 {[%clk 0:01:21.7]} 46... Nd4 {[%clk 0:00:06.5]}
47. b4 {[%clk 0:01:17.3]} 47... Rf8+ {[%clk 0:00:03.6]} 48. Ke3 {[%clk
0:01:16.8]} 48... Nc6 {[%clk 0:00:03.9]} 49. Bxc6+ {[%clk 0:01:16.7]} 49... Kc7
{[%clk 0:00:03.4]} 50. b5 {[%clk 0:01:16.9]} 1-0

[Event "Late-Titled-Tuesday-Blitz-July-09-2024"]
[Site "Chess.com"]
[Date "2024.07.09"]
[Round "4"]
[White "Nemsko"]
[Black "SocoLoco"]
[Result "0-1"]
[WhiteElo "2306"]
[BlackElo "2116"]
[TimeControl "180+1"]
[EndTime "14:38:38 PDT"]
[Termination "SocoLoco won by resignation"]

1. e4 {[%clk 0:03:00.9]} 1... c5 {[%clk 0:02:58.6]} 2. Nf3 {[%clk 0:03:00.5]}
2... e6 {[%clk 0:02:58.4]} 3. d4 {[%clk 0:03:00.4]} 3... cxd4 {[%clk 0:02:58.5]}
4. Nxd4 {[%clk 0:03:01.3]} 4... Nf6 {[%clk 0:02:58]} 5. Nc3 {[%clk 0:03:01.4]}
5... Nc6 {[%clk 0:02:56.6]} 6. a3 {[%clk 0:02:57.7]} 6... d5 {[%clk 0:02:55.7]}
7. exd5 {[%clk 0:02:57.6]} 7... Nxd5 {[%clk 0:02:54.5]} 8. Nxd5 {[%clk
0:02:56.3]} 8... Qxd5 {[%clk 0:02:51.5]} 9. Be3 {[%clk 0:02:56.8]} 9... e5
{[%clk 0:02:40.7]} 10. Nxc6 {[%clk 0:02:51.8]} 10... Qxd1+ {[%clk 0:02:40.7]}
11. Rxd1 {[%clk 0:02:52.7]} 11... bxc6 {[%clk 0:02:40]} 12. Bc4 {[%clk
0:02:51.5]} 12... Be7 {[%clk 0:02:38.7]} 13. O-O {[%clk 0:02:51.7]} 13... O-O
{[%clk 0:02:37.5]} 14. Rd2 {[%clk 0:02:49.1]} 14... Bg4 {[%clk 0:02:27.8]} 15.
f3 {[%clk 0:02:48.4]} 15... Bf5 {[%clk 0:02:27.3]} 16. Rfd1 {[%clk 0:02:47.3]}
16... a5 {[%clk 0:02:23.7]} 17. Kf2 {[%clk 0:02:45.2]} 17... Rfd8 {[%clk
0:02:19.8]} 18. c3 {[%clk 0:02:29.8]} 18... Kf8 {[%clk 0:02:13.3]} 19. Bb6
{[%clk 0:02:13.2]} 19... Rdb8 {[%clk 0:01:58.4]} 20. Bc7 {[%clk 0:02:08.1]}
20... Rb7 {[%clk 0:01:48.9]} 21. Bxe5 {[%clk 0:02:06.4]} 21... a4 {[%clk
0:01:27.7]} 22. Re1 {[%clk 0:01:54.8]} 22... Bc5+ {[%clk 0:01:18.8]} 23. Bd4
{[%clk 0:01:42]} 23... Bxd4+ {[%clk 0:01:17.3]} 24. cxd4 {[%clk 0:01:42.9]}
24... Rab8 {[%clk 0:01:10.7]} 25. Ree2 {[%clk 0:01:41.9]} 25... Rd8 {[%clk
0:00:43.7]} 26. g4 {[%clk 0:01:37.6]} 26... Bc8 {[%clk 0:00:38.6]} 27. d5 {[%clk
0:01:26.6]} 27... cxd5 {[%clk 0:00:34.6]} 28. Bxd5 {[%clk 0:01:27.5]} 28... Rbd7
{[%clk 0:00:32.8]} 29. Rd4 {[%clk 0:01:15.5]} 29... Rxd5 {[%clk 0:00:32.1]} 30.
Rxa4 {[%clk 0:01:16]} 30... Rd2 {[%clk 0:00:31.2]} 31. Re4 {[%clk 0:01:12.5]}
31... Bb7 {[%clk 0:00:27.7]} 32. Rxd2 {[%clk 0:01:07.2]} 32... Rxd2+ {[%clk
0:00:27]} 33. Re2 {[%clk 0:01:08.1]} 33... Rxe2+ {[%clk 0:00:26.8]} 34. Kxe2
{[%clk 0:01:09]} 34... Ke7 {[%clk 0:00:27]} 35. Ke3 {[%clk 0:01:07.7]} 35... Kd6
{[%clk 0:00:27.5]} 36. b4 {[%clk 0:00:59]} 36... Kd5 {[%clk 0:00:26.5]} 37. Kd3
{[%clk 0:00:59.4]} 37... Ba6+ {[%clk 0:00:24.4]} 38. Kc3 {[%clk 0:00:59.1]}
38... Be2 {[%clk 0:00:24]} 39. f4 {[%clk 0:00:55.4]} 39... Bxg4 {[%clk
0:00:23.3]} 40. a4 {[%clk 0:00:54.8]} 40... Bd7 {[%clk 0:00:21.3]} 41. b5 {[%clk
0:00:54.7]} 41... Kc5 {[%clk 0:00:20.3]} 42. Kb3 {[%clk 0:00:55]} 42... Bxb5
{[%clk 0:00:17.8]} 43. axb5 {[%clk 0:00:54.7]} 43... Kxb5 {[%clk 0:00:18.5]} 44.
Kc3 {[%clk 0:00:55.6]} 44... Kc5 {[%clk 0:00:18.2]} 45. Kd3 {[%clk 0:00:56.3]}
45... Kd5 {[%clk 0:00:18]} 46. Ke3 {[%clk 0:00:56.8]} 46... f5 {[%clk
0:00:16.7]} 47. Kd3 {[%clk 0:00:56]} 47... h6 {[%clk 0:00:12.8]} 48. h4 {[%clk
0:00:54.8]} 48... h5 {[%clk 0:00:11.9]} 49. Ke3 {[%clk 0:00:54.2]} 49... Kc4
{[%clk 0:00:11.8]} 50. Ke2 {[%clk 0:00:54.1]} 50... Kd4 {[%clk 0:00:11.2]} 51.
Kf3 {[%clk 0:00:54.6]} 51... Kd3 {[%clk 0:00:11.3]} 0-1

[Event "Late-Titled-Tuesday-Blitz-July-09-2024"]
[Site "Chess.com"]
[Date "2024.07.09"]
[Round "4"]
[White "Jahonas"]
[Black "protectiago"]
[Result "1-0"]
[WhiteElo "2435"]
[BlackElo "2171"]
[TimeControl "180+1"]
[EndTime "14:38:41 PDT"]
[Termination "Jahonas won on time"]

1. d4 {[%clk 0:03:00.9]} 1... Nf6 {[%clk 0:02:58]} 2. Bf4 {[%clk 0:03:00.7]}
2... d5 {[%clk 0:02:53.1]} 3. e3 {[%clk 0:03:00.9]} 3... e6 {[%clk 0:02:52.9]}
4. Nf3 {[%clk 0:02:59.1]} 4... c5 {[%clk 0:02:45.5]} 5. c3 {[%clk 0:02:58.9]}
5... Nc6 {[%clk 0:02:44.8]} 6. Nbd2 {[%clk 0:02:57.9]} 6... Qb6 {[%clk 0:02:38]}
7. Qb3 {[%clk 0:02:56.7]} 7... c4 {[%clk 0:02:32.8]} 8. Qc2 {[%clk 0:02:56.1]}
8... Nh5 {[%clk 0:02:08.9]} 9. Be2 {[%clk 0:02:52.3]} 9... Nxf4 {[%clk
0:02:08.2]} 10. exf4 {[%clk 0:02:52.3]} 10... Bd6 {[%clk 0:02:03.2]} 11. g3
{[%clk 0:02:51.1]} 11... f6 {[%clk 0:01:50.8]} 12. O-O {[%clk 0:02:50.3]} 12...
O-O {[%clk 0:01:50]} 13. Rae1 {[%clk 0:02:31.2]} 13... Bd7 {[%clk 0:01:48.6]}
14. Nh4 {[%clk 0:02:25.7]} 14... Rae8 {[%clk 0:01:45.6]} 15. Bh5 {[%clk
0:02:23.2]} 15... Re7 {[%clk 0:01:40.9]} 16. f5 {[%clk 0:02:12.8]} 16... e5
{[%clk 0:01:36.4]} 17. dxe5 {[%clk 0:02:06.3]} 17... Nxe5 {[%clk 0:01:31.6]} 18.
Ndf3 {[%clk 0:02:02.7]} 18... Nd3 {[%clk 0:01:15.4]} 19. Rxe7 {[%clk 0:01:59.9]}
19... Bxe7 {[%clk 0:01:15.6]} 20. b3 {[%clk 0:01:54.3]} 20... Bc5 {[%clk
0:01:12.5]} 21. bxc4 {[%clk 0:01:44.9]} 21... dxc4 {[%clk 0:00:56.1]} 22. Qe2
{[%clk 0:01:05]} 22... Bxf2+ {[%clk 0:00:47.8]} 23. Rxf2 {[%clk 0:01:01.8]}
23... Bc6 {[%clk 0:00:26.8]} 24. Nd4 {[%clk 0:01:00]} 24... Qb1+ {[%clk
0:00:21.8]} 25. Rf1 {[%clk 0:00:51.6]} 25... Qb6 {[%clk 0:00:13.5]} 26. Nf3
{[%clk 0:00:30.9]} 26... Rd8 {[%clk 0:00:08.4]} 27. Kg2 {[%clk 0:00:30.8]} 27...
Ne5 {[%clk 0:00:06.1]} 28. Nxc6 {[%clk 0:00:29.1]} 28... Qxc6 {[%clk 0:00:05.6]}
29. Kh3 {[%clk 0:00:27]} 29... Qd6 {[%clk 0:00:01.8]} 30. Nxe5 {[%clk
0:00:26.9]} 30... fxe5 {[%clk 0:00:02.2]} 31. Qxc4+ {[%clk 0:00:26.9]} 31... Kh8
{[%clk 0:00:01.9]} 32. Qe6 {[%clk 0:00:26.9]} 32... Qd2 {[%clk 0:00:01.1]} 33.
f6 {[%clk 0:00:26]} 1-0

[Event "Late-Titled-Tuesday-Blitz-July-09-2024"]
[Site "Chess.com"]
[Date "2024.07.09"]
[Round "4"]
[White "Indefatigable11"]
[Black "katharinareinecke"]
[Result "1-0"]
[WhiteElo "2421"]
[BlackElo "2094"]
[TimeControl "180+1"]
[EndTime "14:38:41 PDT"]
[Termination "Indefatigable11 won by resignation"]

1. d4 {[%clk 0:03:00.9]} 1... d5 {[%clk 0:02:59]} 2. c4 {[%clk 0:03:00.6]} 2...
c6 {[%clk 0:02:58.8]} 3. Nf3 {[%clk 0:02:59.9]} 3... Nf6 {[%clk 0:02:59]} 4. e3
{[%clk 0:02:59.9]} 4... e6 {[%clk 0:02:58.3]} 5. Bd3 {[%clk 0:02:59.9]} 5... Be7
{[%clk 0:02:57.4]} 6. O-O {[%clk 0:02:59.9]} 6... O-O {[%clk 0:02:57]} 7. b3
{[%clk 0:02:55.9]} 7... a6 {[%clk 0:02:55.7]} 8. Bb2 {[%clk 0:02:55.6]} 8... b5
{[%clk 0:02:55.9]} 9. Nc3 {[%clk 0:02:54.2]} 9... Nbd7 {[%clk 0:02:50.8]} 10. a3
{[%clk 0:02:49.5]} 10... Bb7 {[%clk 0:02:49.7]} 11. e4 {[%clk 0:02:48.8]} 11...
dxc4 {[%clk 0:02:44.1]} 12. bxc4 {[%clk 0:02:48.4]} 12... bxc4 {[%clk
0:02:41.9]} 13. Bxc4 {[%clk 0:02:48.4]} 13... c5 {[%clk 0:02:41.3]} 14. e5
{[%clk 0:02:48.3]} 14... Ne4 {[%clk 0:02:25.7]} 15. Nxe4 {[%clk 0:02:47.1]}
15... Bxe4 {[%clk 0:02:25.2]} 16. Re1 {[%clk 0:02:43.6]} 16... Bg6 {[%clk
0:02:11.2]} 17. Bd3 {[%clk 0:02:36.6]} 17... Rb8 {[%clk 0:01:45.8]} 18. Bc3
{[%clk 0:02:32.2]} 18... Bxd3 {[%clk 0:01:32.8]} 19. Qxd3 {[%clk 0:02:29.4]}
19... Rb3 {[%clk 0:01:29.2]} 20. Qc2 {[%clk 0:02:24.1]} 20... Qb8 {[%clk
0:01:24.2]} 21. Rab1 {[%clk 0:02:18.5]} 21... c4 {[%clk 0:01:19.9]} 22. Nd2
{[%clk 0:02:01.7]} 22... Rxb1 {[%clk 0:01:07.9]} 23. Rxb1 {[%clk 0:02:02.6]}
23... Qc7 {[%clk 0:01:08]} 24. Bb4 {[%clk 0:01:59.8]} 24... Bxb4 {[%clk
0:01:03.4]} 25. Rxb4 {[%clk 0:01:59.6]} 25... Nb6 {[%clk 0:00:59.1]} 26. a4
{[%clk 0:01:50.8]} 26... Rd8 {[%clk 0:00:57.1]} 27. Nf3 {[%clk 0:01:39.3]} 27...
a5 {[%clk 0:00:51.2]} 28. Rb5 {[%clk 0:01:39.1]} 28... c3 {[%clk 0:00:44.3]} 29.
Rxa5 {[%clk 0:01:27.6]} 29... Nd5 {[%clk 0:00:43.4]} 30. Rc5 {[%clk 0:01:24.8]}
30... Qb7 {[%clk 0:00:38.8]} 31. h3 {[%clk 0:01:20.2]} 31... Qb2 {[%clk
0:00:37.8]} 32. Ne1 {[%clk 0:01:10.1]} 32... Qxc2 {[%clk 0:00:34.3]} 33. Nxc2
{[%clk 0:01:08.4]} 33... g6 {[%clk 0:00:29.4]} 34. Kf1 {[%clk 0:01:01.8]} 34...
Rb8 {[%clk 0:00:28.6]} 35. Ke2 {[%clk 0:01:00.4]} 35... Rb2 {[%clk 0:00:28.6]}
36. Kd3 {[%clk 0:00:58.9]} 36... Ra2 {[%clk 0:00:23]} 37. Rc4 {[%clk 0:00:51.9]}
37... Nf4+ {[%clk 0:00:19.1]} 38. Kxc3 {[%clk 0:00:50.8]} 38... Nxg2 {[%clk
0:00:19.4]} 39. Kb3 {[%clk 0:00:48.2]} 39... Rxc2 {[%clk 0:00:13.2]} 40. Rxc2
{[%clk 0:00:47]} 40... Nf4 {[%clk 0:00:13.1]} 41. a5 {[%clk 0:00:46.9]} 41...
Nd5 {[%clk 0:00:12]} 42. a6 {[%clk 0:00:46.6]} 42... Nb6 {[%clk 0:00:11.8]} 43.
Rc6 {[%clk 0:00:46]} 43... Nd5 {[%clk 0:00:08.9]} 44. a7 {[%clk 0:00:44.4]}
44... Kg7 {[%clk 0:00:08.3]} 45. a8=Q {[%clk 0:00:44.3]} 1-0

[Event "Late-Titled-Tuesday-Blitz-July-09-2024"]
[Site "Chess.com"]
[Date "2024.07.09"]
[Round "4"]
[White "johnmez"]
[Black "Ruprecht_der_Knecht"]
[Result "0-1"]
[WhiteElo "2293"]
[BlackElo "2527"]
[TimeControl "180+1"]
[EndTime "14:38:43 PDT"]
[Termination "Ruprecht_der_Knecht won on time"]

1. d4 {[%clk 0:03:00.9]} 1... Nf6 {[%clk 0:02:58.8]} 2. c4 {[%clk 0:03:01.3]}
2... g6 {[%clk 0:02:58.9]} 3. Nc3 {[%clk 0:02:59.9]} 3... d5 {[%clk 0:02:59]} 4.
Nf3 {[%clk 0:02:57]} 4... Bg7 {[%clk 0:02:57.9]} 5. Bf4 {[%clk 0:02:55.2]} 5...
O-O {[%clk 0:02:55.3]} 6. Rc1 {[%clk 0:02:52.2]} 6... c5 {[%clk 0:02:52.3]} 7.
dxc5 {[%clk 0:02:48.4]} 7... dxc4 {[%clk 0:02:47.2]} 8. Qxd8 {[%clk 0:02:47]}
8... Rxd8 {[%clk 0:02:46.9]} 9. e3 {[%clk 0:02:46.6]} 9... Na6 {[%clk
0:02:40.1]} 10. c6 {[%clk 0:02:45]} 10... bxc6 {[%clk 0:02:29.5]} 11. Bxc4
{[%clk 0:02:43.7]} 11... Nb4 {[%clk 0:02:23.8]} 12. Ne5 {[%clk 0:02:20.5]} 12...
Nfd5 {[%clk 0:02:18.3]} 13. a3 {[%clk 0:01:21.6]} 13... Nxf4 {[%clk 0:01:19.1]}
14. exf4 {[%clk 0:01:21.2]} 14... Bxe5 {[%clk 0:01:18.4]} 15. fxe5 {[%clk
0:01:21.6]} 15... Nd3+ {[%clk 0:01:18.8]} 16. Bxd3 {[%clk 0:01:20.1]} 16... Rxd3
{[%clk 0:01:19.7]} 17. Ke2 {[%clk 0:01:19.8]} 17... Ba6 {[%clk 0:01:16.5]} 18.
Ke1 {[%clk 0:01:12.6]} 18... Rb8 {[%clk 0:01:09.5]} 19. Rc2 {[%clk 0:01:08.3]}
19... Bc4 {[%clk 0:01:02.1]} 20. f4 {[%clk 0:00:52.1]} 20... Rbd8 {[%clk
0:01:00.2]} 21. h4 {[%clk 0:00:31.8]} 21... Bb3 {[%clk 0:00:57.7]} 22. Rc1
{[%clk 0:00:29.4]} 22... h5 {[%clk 0:00:50.1]} 23. Rf1 {[%clk 0:00:22.3]} 23...
Rg3 {[%clk 0:00:39.6]} 24. Kf2 {[%clk 0:00:18.8]} 24... Rdd3 {[%clk 0:00:32.8]}
25. Ne4 {[%clk 0:00:14.7]} 25... Rg4 {[%clk 0:00:29.1]} 26. Kg1 {[%clk
0:00:04.9]} 26... Bd5 {[%clk 0:00:24.5]} 27. Rfe1 {[%clk 0:00:04.3]} 27... Rxf4
{[%clk 0:00:20.4]} 28. Nf2 {[%clk 0:00:03.9]} 28... Rd2 {[%clk 0:00:20.5]} 29.
Rf1 {[%clk 0:00:02.7]} 29... Rxb2 {[%clk 0:00:18.5]} 30. Rb1 {[%clk 0:00:01.8]}
30... Ra2 {[%clk 0:00:18.3]} 31. Rb8+ {[%clk 0:00:01]} 31... Kg7 {[%clk
0:00:18.2]} 0-1

[Event "Late-Titled-Tuesday-Blitz-July-09-2024"]
[Site "Chess.com"]
[Date "2024.07.09"]
[Round "4"]
[White "prxcess_brownie"]
[Black "Brown_Mamba24"]
[Result "0-1"]
[WhiteElo "2233"]
[BlackElo "2523"]
[TimeControl "180+1"]
[EndTime "14:38:45 PDT"]
[Termination "Brown_Mamba24 won by resignation"]

1. c4 {[%clk 0:03:00.9]} 1... g6 {[%clk 0:03:00]} 2. Nc3 {[%clk 0:03:00]} 2...
Bg7 {[%clk 0:03:00.5]} 3. g3 {[%clk 0:03:00.4]} 3... c5 {[%clk 0:03:00.7]} 4.
Bg2 {[%clk 0:02:59.8]} 4... Nc6 {[%clk 0:03:01.3]} 5. e3 {[%clk 0:02:59.8]} 5...
d6 {[%clk 0:03:01.9]} 6. Nge2 {[%clk 0:02:59.5]} 6... e5 {[%clk 0:03:02]} 7. d4
{[%clk 0:02:58.3]} 7... exd4 {[%clk 0:03:01.3]} 8. exd4 {[%clk 0:02:59]} 8...
cxd4 {[%clk 0:03:01.7]} 9. Nb5 {[%clk 0:02:59.2]} 9... Nge7 {[%clk 0:03:01.3]}
10. Nbxd4 {[%clk 0:02:55.9]} 10... O-O {[%clk 0:02:59.5]} 11. O-O {[%clk
0:02:55.3]} 11... d5 {[%clk 0:02:57.7]} 12. cxd5 {[%clk 0:02:52.5]} 12... Nxd4
{[%clk 0:02:58]} 13. Nxd4 {[%clk 0:02:50.6]} 13... Nxd5 {[%clk 0:02:58.7]} 14.
Nb5 {[%clk 0:02:46.7]} 14... a6 {[%clk 0:02:43.9]} 15. Qxd5 {[%clk 0:02:15.7]}
15... Qxd5 {[%clk 0:02:43.5]} 16. Bxd5 {[%clk 0:02:16.6]} 16... axb5 {[%clk
0:02:44.2]} 17. Re1 {[%clk 0:02:12.2]} 17... Rd8 {[%clk 0:02:39.8]} 18. Bb3
{[%clk 0:02:10.3]} 18... Bf6 {[%clk 0:02:23.9]} 19. Bh6 {[%clk 0:01:57.2]} 19...
Bxb2 {[%clk 0:02:18.1]} 20. Rad1 {[%clk 0:01:51]} 20... Bh3 {[%clk 0:02:15.4]}
21. Rxd8+ {[%clk 0:01:43.9]} 21... Rxd8 {[%clk 0:02:14]} 22. Re7 {[%clk
0:01:44]} 22... Be6 {[%clk 0:01:49.7]} 23. Bxe6 {[%clk 0:01:37]} 23... fxe6
{[%clk 0:01:50]} 24. Rxe6 {[%clk 0:01:36.5]} 24... Bc3 {[%clk 0:01:04.9]} 25.
Rb6 {[%clk 0:01:20.7]} 25... b4 {[%clk 0:00:57.4]} 26. Rxb7 {[%clk 0:01:19.9]}
26... Ra8 {[%clk 0:00:57.5]} 27. Be3 {[%clk 0:00:48.6]} 27... Rxa2 {[%clk
0:00:55.3]} 28. Bc5 {[%clk 0:00:47.8]} 28... Rb2 {[%clk 0:00:49.9]} 29. Kg2
{[%clk 0:00:43.3]} 29... b3 {[%clk 0:00:47.1]} 30. Kf3 {[%clk 0:00:42.9]} 30...
Rb1 {[%clk 0:00:44.4]} 31. Ke4 {[%clk 0:00:22.7]} 31... Re1+ {[%clk 0:00:34.6]}
32. Kd3 {[%clk 0:00:20]} 32... b2 {[%clk 0:00:35.1]} 33. Kc2 {[%clk 0:00:19.9]}
33... Rc1+ {[%clk 0:00:34.6]} 34. Kd3 {[%clk 0:00:18.4]} 34... Be5 {[%clk
0:00:26.8]} 35. Bd4 {[%clk 0:00:07.6]} 35... Bxd4 {[%clk 0:00:25.6]} 36. Kxd4
{[%clk 0:00:07.6]} 36... b1=Q {[%clk 0:00:25.8]} 0-1

[Event "Late-Titled-Tuesday-Blitz-July-09-2024"]
[Site "Chess.com"]
[Date "2024.07.09"]
[Round "4"]
[White "TokChess"]
[Black "pinelone"]
[Result "1-0"]
[WhiteElo "2579"]
[BlackElo "2380"]
[TimeControl "180+1"]
[EndTime "14:38:46 PDT"]
[Termination "TokChess won by resignation"]

1. b3 {[%clk 0:03:00.9]} 1... d5 {[%clk 0:02:59.4]} 2. Bb2 {[%clk 0:03:01.8]}
2... Bg4 {[%clk 0:02:59.3]} 3. Nf3 {[%clk 0:02:58.8]} 3... Bxf3 {[%clk
0:02:57.1]} 4. exf3 {[%clk 0:02:58.8]} 4... Nf6 {[%clk 0:02:57.3]} 5. g3 {[%clk
0:02:51]} 5... g6 {[%clk 0:02:57.4]} 6. f4 {[%clk 0:02:51.4]} 6... Bg7 {[%clk
0:02:57.7]} 7. Bg2 {[%clk 0:02:51.2]} 7... O-O {[%clk 0:02:57.5]} 8. O-O {[%clk
0:02:51.8]} 8... c5 {[%clk 0:02:57.1]} 9. Re1 {[%clk 0:02:51.1]} 9... Nc6 {[%clk
0:02:57]} 10. d3 {[%clk 0:02:49.5]} 10... e6 {[%clk 0:02:55.8]} 11. Nd2 {[%clk
0:02:49.4]} 11... Rc8 {[%clk 0:02:54.6]} 12. Nf3 {[%clk 0:02:32.8]} 12... Ne8
{[%clk 0:02:50]} 13. Bxg7 {[%clk 0:02:30.6]} 13... Kxg7 {[%clk 0:02:43.4]} 14.
c3 {[%clk 0:02:18.4]} 14... Nd6 {[%clk 0:02:40.7]} 15. h4 {[%clk 0:02:17.4]}
15... h5 {[%clk 0:02:39.5]} 16. Ng5 {[%clk 0:02:15]} 16... Re8 {[%clk
0:02:35.1]} 17. Bf3 {[%clk 0:02:09.3]} 17... Qf6 {[%clk 0:02:26.4]} 18. Qd2
{[%clk 0:02:02.5]} 18... Red8 {[%clk 0:02:01.7]} 19. Rac1 {[%clk 0:01:48.7]}
19... c4 {[%clk 0:01:57]} 20. bxc4 {[%clk 0:01:42.8]} 20... dxc4 {[%clk
0:01:55.9]} 21. d4 {[%clk 0:01:43.4]} 21... Ne7 {[%clk 0:01:51.5]} 22. Re5
{[%clk 0:01:36.7]} 22... Nd5 {[%clk 0:01:20.4]} 23. Rce1 {[%clk 0:01:30.5]}
23... Nf5 {[%clk 0:01:15.6]} 24. Bg2 {[%clk 0:01:21.9]} 24... Rc6 {[%clk
0:01:09.2]} 25. Rb1 {[%clk 0:01:09.3]} 25... b6 {[%clk 0:00:49.2]} 26. a4 {[%clk
0:01:05.2]} 26... a6 {[%clk 0:00:40.3]} 27. Bh3 {[%clk 0:00:43.7]} 27... Nfe7
{[%clk 0:00:16.5]} 28. Rc1 {[%clk 0:00:43.5]} 28... Rb8 {[%clk 0:00:14.9]} 29.
Ne4 {[%clk 0:00:38.1]} 29... Qxe5 {[%clk 0:00:08.3]} 30. fxe5 {[%clk 0:00:37.9]}
30... b5 {[%clk 0:00:07.5]} 31. axb5 {[%clk 0:00:38.6]} 31... Rxb5 {[%clk
0:00:07.3]} 32. Qg5 {[%clk 0:00:29]} 32... Rb7 {[%clk 0:00:03.3]} 33. Nf6 {[%clk
0:00:29.2]} 33... Nf5 {[%clk 0:00:01.9]} 34. Bxf5 {[%clk 0:00:26.8]} 34... exf5
{[%clk 0:00:01.6]} 35. Nxd5 {[%clk 0:00:26.7]} 1-0

[Event "Late-Titled-Tuesday-Blitz-July-09-2024"]
[Site "Chess.com"]
[Date "2024.07.09"]
[Round "4"]
[White "mortngabriel"]
[Black "chessuriel"]
[Result "1-0"]
[WhiteElo "2459"]
[BlackElo "2257"]
[TimeControl "180+1"]
[EndTime "14:38:46 PDT"]
[Termination "mortngabriel won by resignation"]

1. e4 {[%clk 0:03:00.9]} 1... c5 {[%clk 0:02:59.7]} 2. Nf3 {[%clk 0:02:59.5]}
2... d6 {[%clk 0:03:00.2]} 3. d4 {[%clk 0:02:58.1]} 3... cxd4 {[%clk 0:03:01.1]}
4. Nxd4 {[%clk 0:02:58.8]} 4... Nf6 {[%clk 0:03:01.4]} 5. Nc3 {[%clk 0:02:59.3]}
5... g6 {[%clk 0:03:01.7]} 6. h4 {[%clk 0:02:56.9]} 6... Bg7 {[%clk 0:03:02.6]}
7. h5 {[%clk 0:02:56.4]} 7... gxh5 {[%clk 0:02:52.9]} 8. Be2 {[%clk 0:02:53.6]}
8... Bg4 {[%clk 0:02:49.9]} 9. f3 {[%clk 0:02:49.3]} 9... Bd7 {[%clk 0:02:50.1]}
10. Be3 {[%clk 0:02:44.7]} 10... Nc6 {[%clk 0:02:49.7]} 11. Qd2 {[%clk 0:02:45]}
11... Rg8 {[%clk 0:02:43.3]} 12. O-O-O {[%clk 0:02:44.4]} 12... Bh8 {[%clk
0:02:38.7]} 13. Bf1 {[%clk 0:02:07]} 13... a6 {[%clk 0:02:20.5]} 14. Nde2 {[%clk
0:02:06.7]} 14... Rc8 {[%clk 0:01:56.2]} 15. Nf4 {[%clk 0:02:06.8]} 15... Ne5
{[%clk 0:01:39.1]} 16. Nxh5 {[%clk 0:02:04.2]} 16... Nc4 {[%clk 0:01:36.4]} 17.
Nxf6+ {[%clk 0:01:57.5]} 17... Bxf6 {[%clk 0:01:36]} 18. Bxc4 {[%clk 0:01:58.1]}
18... Rxc4 {[%clk 0:01:36.2]} 19. Nd5 {[%clk 0:01:58.5]} 19... Be5 {[%clk
0:01:07.7]} 20. Bb6 {[%clk 0:01:30.7]} 20... Qc8 {[%clk 0:01:05.1]} 21. Rxh7
{[%clk 0:01:29.2]} 21... e6 {[%clk 0:00:54.9]} 22. Ne3 {[%clk 0:01:28.8]} 22...
Bf4 {[%clk 0:00:54.7]} 23. Kb1 {[%clk 0:01:20.8]} 23... Rc6 {[%clk 0:00:54.1]}
24. Bd4 {[%clk 0:01:14.1]} 24... b5 {[%clk 0:00:46]} 25. Qd3 {[%clk 0:01:06]}
25... Bxe3 {[%clk 0:00:33.2]} 26. Qxe3 {[%clk 0:00:52.3]} 26... e5 {[%clk
0:00:31.3]} 27. Bc3 {[%clk 0:00:49]} 27... b4 {[%clk 0:00:30.9]} 28. Bxb4 {[%clk
0:00:46.3]} 28... Rxc2 {[%clk 0:00:30.8]} 29. Bxd6 {[%clk 0:00:38.1]} 29... Ba4
{[%clk 0:00:20.6]} 30. b3 {[%clk 0:00:32.3]} 30... Rcxg2 {[%clk 0:00:18.8]} 31.
Rc1 {[%clk 0:00:31.4]} 31... Qe6 {[%clk 0:00:18.7]} 32. Qb6 {[%clk 0:00:18.4]}
32... Rb2+ {[%clk 0:00:13.7]} 33. Kxb2 {[%clk 0:00:17.4]} 33... Rg2+ {[%clk
0:00:13.2]} 34. Kb1 {[%clk 0:00:17.1]} 34... Bd7 {[%clk 0:00:14.1]} 35. Qb8+
{[%clk 0:00:16.4]} 1-0